bitfinex/quotes_SOLUSD_20251001
["timestamp","ask_amount","ask_price","bid_price","bid_amount"]
[1759326942183,1e-08,219.06,219.05,37.72516776]
[1759326943660,1e-08,219.06,219.05,4.56516776]
[1759326943989,0.72000001,219.06,219.05,4.56516776]
[1759326944479,0.72000001,219.06,219.05,37.70516776]
[1759326944869,1e-08,219.06,219.05,37.70516776]
[1759326946898,0.72000001,219.06,219.05,33.14]
[1759326947194,0.72000001,219.06,219.05,37.70516776]
[1759326947498,0.72000001,219.06,219.04,40.16530958]
[1759326947694,0.72000001,219.06,219.04,35.6]
[1759326947999,1e-08,219.06,219.05,33.12]
[1759326948177,1e-08,219.06,219.04,35.6]
[1759326948591,1e-08,219.06,219.05,33.12]
[1759326948989,0.72000001,219.06,219.05,33.12]
[1759326950506,7.33856028,219.06,219.04,35.6]
[1759326950675,16.65348832,219.05,219.04,35.6]
[1759326950874,16.65348832,219.05,219.04,68.72]
[1759326951475,0.72,219.05,219.04,68.72]
[1759326952076,0.72,219.05,219.04,73.28537618]
[1759326952702,0.72,219.05,219.04,68.72]
[1759326953297,0.72,219.05,219.04,73.28537618]
[1759326953982,0.72,219.05,219.04,68.72]
[1759326955396,1e-08,219.06,219.04,73.28537618]
[1759326955788,0.67000001,219.06,219.04,73.28537618]
[1759326956183,1e-08,219.06,219.05,0.69]
[1759326956388,1e-08,219.06,219.04,73.28537618]
[1759326956596,1e-08,219.06,219.05,0.69]
[1759326956797,1e-08,219.06,219.04,73.97537618]
[1759326957204,0.67000001,219.06,219.04,40.16537618]
[1759326957391,0.67000001,219.06,219.05,33.08]
[1759326957392,1e-08,219.06,219.05,33.08]
[1759326958082,1e-08,219.06,219.05,37.64516776]
[1759326959593,1e-08,219.06,219.05,37.62516776]
[1759326960204,1e-08,219.06,219.05,38.31516776]
[1759326960788,0.1,219.11,219.08,20.8]
[1759326960991,0.1,219.11,219.05,16.66808718]
[1759326961295,0.1,219.11,219.09,20.8]
[1759326961484,0.1,219.11,219.1,33.06]
[1759326962087,0.1,219.11,219.1,37.62412596]
[1759326962708,0.1,219.11,219.05,11.41254497]
[1759326963009,0.67,219.1,219.09,20.8]
[1759326963508,0.67,219.1,219.09,53.86]
[1759326963707,0.67,219.1,219.07,20.8]
[1759326963911,0.67,219.1,219.04,35.6]
[1759326963912,0.67,219.09,219.08,33.06]
[1759326965211,0.1,219.11,219.1,20.8]
[1759326965392,0.1,219.11,219.1,53.86]
[1759326965714,0.1,219.11,219.1,54.55]
[1759326966083,0.1,219.11,219.1,59.11412596]
[1759326966708,0.1,219.11,219.1,58.42412596]
[1759326967982,0.1,219.11,219.1,59.11412596]
[1759326968189,0.1,219.11,219.1,58.42412596]
[1759326969591,0.1,219.11,219.1,20.8]
[1759326969592,0.77,219.11,219.1,20.8]
[1759326969796,0.77,219.11,219.07,4.56475099]
[1759326969984,0.67,219.1,219.08,33.06]
[1759326970185,0.1,219.11,219.1,20.8]
[1759326970401,0.1,219.11,219.1,53.86]
[1759326972297,0.77,219.11,219.1,25.36412596]
[1759326972612,0.77,219.11,219.1,58.42412596]
[1759326972613,0.1,219.11,219.1,58.42412596]
[1759326973190,0.1,219.11,219.1,59.11412596]
[1759326973606,0.1,219.14,219.13,20.8]
[1759326973791,0.1,219.14,219.13,63.63622304]
[1759326974105,0.1,219.14,219.13,59.80092609]
[1759326974300,0.1,219.14,219.13,64.3644272]
[1759326974808,0.2,219.21,219.17,20.8]
[1759326974998,0.2,219.21,219.18,37.08211529]
[1759326975211,0.87,219.21,219.18,12.45003769]
[1759326975523,0.2,219.21,219.19,33.06]
[1759326975890,0.2,219.21,219.19,33.75]
[1759326976224,0.2,219.24,219.21,25.36183568]
[1759326976386,0.2,219.24,219.21,37.62183568]
[1759326976592,0.2,219.24,219.21,38.31183568]
[1759326977021,0.2,219.24,219.23,20.8]
[1759326977222,0.2,219.24,219.23,53.84]
[1759326978322,0.2,219.24,219.23,58.40141951]
[1759326980911,0.1,219.28,219.23,70.49496829]
[1759326981098,0.1,219.28,219.27,20.8]
[1759326981301,0.1,219.28,219.27,53.84]
[1759326982517,0.1,219.28,219.27,58.4005874]
[1759326983828,0.1,219.33,219.27,70.4920559]
[1759326984035,0.1,219.33,219.27,69.8020559]
[1759326984215,0.1,219.33,219.28,0.69]
[1759326984414,0.1,219.33,219.32,25.35954769]
[1759326984618,0.82,219.41,219.32,59.08954769]
[1759326984815,0.82,219.41,219.33,0.69]
[1759326985031,0.82,219.41,219.36,20.8]
[1759326985330,0.92,219.37,219.36,53.84]
[1759326985535,0.2,219.37,219.36,53.84]
[1759326985930,0.2,219.37,219.36,53.82]
[1759326986573,0.2,219.37,219.36,58.37871626]
[1759326987438,0.92,219.37,219.36,20.8]
[1759326987744,0.92,219.37,219.32,20.8]
[1759326987917,0.92,219.37,219.36,20.8]
[1759326988114,0.92,219.37,219.36,53.82]
[1759326988315,0.38432314,219.41,219.36,54.31]
[1759326988316,0.1,219.41,219.36,54.31]
[1759326988544,0.1,219.41,219.4,20.8]
[1759326988843,0.82,219.41,219.4,20.8]
[1759326989043,0.82,219.41,219.38,20.8]
[1759326989215,0.1,219.41,219.39,37.57803761]
[1759326989421,0.1,219.41,219.4,33.02]
[1759326990547,0.1,219.41,219.4,37.57788514]
[1759326991437,0.78,219.41,219.4,53.82]
[1759326992652,0.1,219.41,219.4,58.37788514]
[1759326993735,0.1,219.41,219.4,33.02]
[1759326994858,0.1,219.41,219.4,37.57788514]
[1759326996834,0.78,219.41,219.4,37.57788514]
[1759326997042,0.78,219.41,219.4,58.35788514]
[1759326997629,0.78,219.41,219.4,53.8]
[1759326998127,0.78,219.41,219.35,20.8]
[1759326998342,0.68,219.4,219.39,20.8]
[1759326998541,0.68,219.4,219.39,53.8]
[1759326998933,0.68,219.4,219.39,58.35809289]
[1759326999535,0.1,219.41,219.39,58.35809289]
[1759327000342,0.78,219.41,219.39,58.35809289]
[1759327001048,0.1,219.41,219.39,58.35809289]
[1759327001243,0.78,219.41,219.39,58.35809289]
[1759327001448,0.1,219.41,219.39,58.35809289]
[1759327001650,0.78,219.41,219.39,58.35809289]
[1759327002344,0.68,219.4,219.39,58.35809289]
[1759327002852,0.1,219.41,219.39,58.35809289]
[1759327003039,0.78,219.41,219.4,58.35788514]
[1759327004149,0.1,219.41,219.4,58.35788514]
[1759327007266,0.78,219.41,219.4,53.8]
[1759327007569,5.33769537,219.41,219.32,4.55954769]
[1759327007739,0.68,219.4,219.33,33.0]
[1759327008246,0.68,219.39,219.36,20.8]
[1759327008455,0.1,219.41,219.4,20.8]
[1759327008654,0.1,219.41,219.4,53.8]
[1759327008858,0.38432314,219.41,219.4,53.8]
[1759327009041,1.06432314,219.41,219.4,53.8]
[1759327009955,14.65991715,219.41,219.4,53.8]
[1759327010852,0.78,219.41,219.4,53.8]
[1759327014936,0.1,219.41,219.4,58.35788514]
[1759327015648,0.1,219.41,219.4,20.8]
[1759327015850,0.1,219.41,219.4,58.35788514]
[1759327018834,0.1,219.41,219.4,25.35788514]
[1759327019036,0.79,219.41,219.4,58.33788514]
[1759327019236,0.1,219.41,219.4,58.33788514]
[1759327020461,0.1,219.41,219.4,38.03788514]
[1759327020640,0.1,219.41,219.4,37.53788514]
[1759327021158,0.1,219.41,219.4,38.03788514]
[1759327021464,0.1,219.41,219.4,38.53788514]
[1759327023464,0.2,219.43,219.42,20.8]
[1759327023768,0.2,219.43,219.42,53.78]
[1759327024267,0.2,219.43,219.41,13.59559401]
[1759327024268,0.89,219.43,219.41,13.59559401]
[1759327024469,0.2,219.43,219.42,53.78]
[1759327024652,13.59559401,219.41,219.4,4.62029278]
[1759327024852,17.76840277,219.41,219.4,37.60029278]
[1759327025050,0.69,219.41,219.4,32.98]
[1759327025260,5.44728867,219.43,219.4,32.98]
[1759327025457,0.69,219.42,219.4,32.98]
[1759327025646,0.2,219.43,219.4,32.98]
[1759327026042,0.89,219.43,219.4,37.53779539]
[1759327026556,0.2,219.43,219.42,20.8]
[1759327026765,0.2,219.43,219.42,53.78]
[1759327027273,0.2,219.43,219.42,58.33746969]
[1759327027650,0.2,219.43,219.42,59.05746969]
[1759327029063,1e-08,219.43,219.42,59.05746969]
[1759327029369,1e-08,219.43,219.42,26.07746969]
[1759327029681,0.1,219.49,219.42,60.25849238]
[1759327029977,0.1,219.49,219.46,20.8]
[1759327030182,0.1,219.49,219.47,32.98]
[1759327030481,0.1,219.49,219.45,20.8]
[1759327030482,0.79,219.49,219.45,20.8]
[1759327030682,0.69,219.48,219.46,32.98]
[1759327030881,0.69,219.47,219.42,4.55746969]
[1759327031175,0.28432314,219.48,219.46,20.8]
[1759327031176,13.87991715,219.48,219.46,20.8]
[1759327031377,4.5564314,219.47,219.38,14.40332231]
[1759327031673,17.76840277,219.46,219.37,4.55850845]
[1759327031887,0.28432314,219.43,219.37,13.68457064]
[1759327032088,13.87991715,219.41,219.37,13.68457064]
[1759327032258,0.69,219.4,219.38,32.98]
[1759327032660,0.69,219.4,219.36,56.34]
[1759327032661,0.28432314,219.38,219.36,35.54]
[1759327032869,0.69,219.37,219.36,35.54]
[1759327033061,0.69,219.37,219.36,68.52]
[1759327034264,19.1284256,219.37,219.36,35.54]
[1759327034463,19.1284256,219.37,219.36,68.52]
[1759327034679,22.32691122,219.37,219.36,35.54]
[1759327035074,17.76840277,219.37,219.36,68.52]
[1759327035574,19.1284256,219.37,219.36,68.52]
[1759327035778,17.76840277,219.37,219.36,68.52]
[1759327036078,22.32691122,219.37,219.36,68.52]
[1759327036971,0.69,219.45,219.39,20.8]
[1759327037176,0.69,219.45,219.4,32.98]
[1759327037571,13.59559401,219.43,219.4,37.53781812]
[1759327038085,0.69,219.43,219.4,37.53781812]
[1759327038269,13.59559401,219.44,219.4,37.53781812]
[1759327038780,0.69,219.43,219.4,37.53781812]
[1759327039579,0.69,219.42,219.36,56.34]
[1759327039888,0.69,219.42,219.37,33.02]
[1759327040076,0.69,219.41,219.38,33.02]
[1759327040266,13.87991715,219.44,219.38,33.74]
[1759327041063,0.97432314,219.44,219.38,33.02]
[1759327041394,0.97432314,219.44,219.39,4.55809289]
[1759327041564,0.97432314,219.44,219.4,33.02]
[1759327041565,0.69,219.44,219.4,33.02]
[1759327041759,13.59559401,219.43,219.4,33.02]
[1759327042786,13.87991715,219.44,219.4,33.02]
[1759327042971,14.52991715,219.44,219.4,33.02]
[1759327043375,0.28432314,219.44,219.4,33.02]
[1759327043786,0.7,219.43,219.4,33.02]
[1759327044176,0.14216157,219.43,219.4,37.57782471]
[1759327044485,0.98432314,219.43,219.4,33.02]
[1759327044861,0.28432314,219.43,219.4,37.57787296]
[1759327045062,0.28432314,219.43,219.4,38.23787296]
[1759327045359,0.28432314,219.43,219.4,37.57787296]
[1759327045966,0.28432314,219.43,219.4,33.02]
[1759327046480,4.84141601,219.44,219.4,33.02]
[1759327046685,0.98432314,219.44,219.4,37.5778831]
[1759327047592,0.98432314,219.44,219.4,33.02]
[1759327047789,13.59559401,219.43,219.4,33.02]
[1759327049391,0.7,219.42,219.4,33.02]
[1759327049567,18.85286913,219.43,219.4,33.02]
[1759327049769,14.29559401,219.43,219.4,33.02]
[1759327050168,0.28432314,219.42,219.4,33.02]
[1759327050472,0.28432314,219.42,219.41,32.98]
[1759327050473,14.57991715,219.42,219.41,32.98]
[1759327052283,35.57060916,219.42,219.36,35.54]
[1759327052483,13.87991715,219.37,219.36,35.54]
[1759327052664,14.57991715,219.37,219.36,68.52]
[1759327052980,19.61946524,219.37,219.36,68.52]
[1759327053294,14.57991715,219.37,219.36,68.52]
[1759327054674,19.1384256,219.37,219.36,68.52]
[1759327054874,24.17797369,219.37,219.36,68.52]
[1759327055175,14.57991715,219.37,219.36,68.52]
[1759327055579,13.87991715,219.37,219.36,68.52]
[1759327055782,18.4384256,219.37,219.36,68.52]
[1759327055993,19.1384256,219.37,219.36,68.52]
[1759327056490,14.57991715,219.37,219.36,68.52]
[1759327056685,19.1384256,219.37,219.36,68.52]
[1759327057884,0.28432314,219.38,219.36,68.52]
[1759327058094,13.87991715,219.37,219.36,68.52]
[1759327058297,13.59559401,219.43,219.36,73.7387078]
[1759327058494,13.59559401,219.43,219.38,4.55830066]
[1759327058700,13.59559401,219.45,219.39,33.64]
[1759327058896,0.7,219.47,219.39,32.98]
[1759327059109,0.1,219.49,219.42,20.8]
[1759327059284,13.59559401,219.48,219.43,32.98]
[1759327059485,0.1,219.49,219.43,32.98]
[1759327059811,13.59559401,219.48,219.44,0.66]
[1759327060107,13.59559401,219.48,219.45,33.64]
[1759327060283,13.59559401,219.48,219.4,1.82435976]
[1759327060284,0.1,219.49,219.46,33.64]
[1759327060607,0.1,219.49,219.47,0.66]
[1759327060904,0.1,219.49,219.48,32.98]
[1759327062987,0.1,219.49,219.48,33.64]
[1759327063418,0.1,219.49,219.43,20.8]
[1759327063419,0.28432314,219.48,219.43,20.8]
[1759327063598,0.28432314,219.48,219.44,32.98]
[1759327063794,0.28432314,219.48,219.43,0.66]
[1759327064006,0.28432314,219.48,219.44,53.78]
[1759327064315,0.28432314,219.48,219.44,54.44]
[1759327065006,0.28432314,219.48,219.44,58.99692224]
[1759327065210,0.28432314,219.48,219.45,0.66]
[1759327065507,0.38432314,219.49,219.46,33.64]
[1759327065900,0.1,219.49,219.47,0.66]
[1759327066109,0.1,219.49,219.48,33.64]
[1759327066612,0.1,219.49,219.48,38.1962238]
[1759327067313,0.1,219.49,219.48,33.64]
[1759327067512,0.1,219.49,219.48,32.98]
[1759327067810,0.1,219.49,219.48,38.1962238]
[1759327068006,0.1,219.49,219.48,73.7362238]
[1759327069721,0.1,219.49,219.48,36.2]
[1759327070021,0.1,219.49,219.48,69.16]
[1759327070518,0.1,219.49,219.48,73.7162238]
[1759327073693,0.1,219.49,219.48,40.7562238]
[1759327076642,0.1,219.49,219.48,40.0962238]
[1759327076807,0.1,219.49,219.48,35.54]
[1759327077116,0.1,219.49,219.48,40.0962238]
[1759327078116,24.29243655,219.49,219.48,35.54]
[1759327082217,21.30318033,219.49,219.48,35.54]
[1759327082528,13.87991715,219.48,219.37,0.7]
[1759327082819,2.04724697,219.4,219.34,0.7]
[1759327083026,13.59559401,219.37,219.32,0.7]
[1759327083229,13.59559401,219.37,219.33,0.7]
[1759327083526,18.15412329,219.37,219.3,40.09994721]
[1759327083738,18.15412329,219.37,219.31,0.7]
[1759327084226,13.59559401,219.38,219.31,0.7]
[1759327084416,16.36284098,219.38,219.31,0.7]
[1759327084619,14.31559401,219.38,219.33,20.8]
[1759327084832,16.36284098,219.38,219.33,20.8]
[1759327085005,0.72,219.37,219.34,20.8]
[1759327085212,13.59559401,219.38,219.34,20.8]
[1759327085419,14.31559401,219.38,219.34,20.8]
[1759327086532,0.72,219.37,219.34,20.8]
[1759327087227,8.18898788,219.45,219.35,0.7]
[1759327087228,0.72,219.45,219.35,0.7]
[1759327087536,13.59559401,219.44,219.37,20.8]
[1759327087741,13.59559401,219.44,219.38,0.7]
[1759327087944,13.59559401,219.45,219.38,0.7]
[1759327088117,15.64284098,219.45,219.38,0.7]
[1759327088318,13.59559401,219.41,219.37,20.8]
[1759327088516,13.59559401,219.39,219.37,20.8]
[1759327088935,2.04724697,219.41,219.33,20.8]
[1759327089244,2.04724697,219.41,219.33,25.35930695]
[1759327089245,13.59559401,219.39,219.33,25.35930695]
[1759327089620,13.59559401,219.39,219.34,0.7]
[1759327089841,13.59559401,219.39,219.33,25.35930695]
[1759327090051,4.55811177,219.39,219.33,25.35930695]
[1759327090441,4.55811177,219.39,219.33,20.8]
[1759327090637,19.35804191,219.38,219.32,20.8]
[1759327090829,14.31559401,219.38,219.32,20.8]
[1759327091029,13.59559401,219.38,219.32,0.7]
[1759327091223,14.31559401,219.38,219.34,20.8]
[1759327091418,9.60055967,219.39,219.29,46.94006887]
[1759327091419,13.59559401,219.36,219.3,0.7]
[1759327091666,13.59559401,219.36,219.3,5.25995733]
[1759327091954,13.59559401,219.36,219.33,20.8]
[1759327092117,14.31559401,219.36,219.3,5.25995733]
[1759327092320,14.31559401,219.36,219.3,26.05995733]
[1759327092626,23.9168895,219.36,219.29,40.10012097]
[1759327092821,5.0424479,219.34,219.29,35.54]
[1759327093024,18.63804191,219.34,219.29,35.54]
[1759327093236,19.35804191,219.34,219.29,35.54]
[1759327093446,14.31559401,219.33,219.29,35.54]
[1759327093744,0.72,219.32,219.29,35.54]
[1759327094053,13.59559401,219.31,219.29,35.54]
[1759327095143,13.87991715,219.34,219.29,40.10009714]
[1759327095451,14.59991715,219.34,219.29,40.10009714]
[1759327095754,14.59991715,219.34,219.29,35.54]
[1759327096252,14.59991715,219.34,219.29,40.10013665]
[1759327096437,13.87991715,219.34,219.29,40.80013665]
[1759327096633,0.72,219.4,219.32,20.8]
[1759327096957,0.72,219.43,219.33,0.7]
[1759327097255,13.59559401,219.42,219.33,21.5]
[1759327097434,13.59559401,219.42,219.34,0.7]
[1759327097954,13.59559401,219.42,219.35,4.55892409]
[1759327098538,11.49021719,219.49,219.38,20.8]
[1759327098859,13.59559401,219.45,219.39,0.7]
[1759327099241,0.72,219.46,219.39,0.7]
[1759327099242,0.1,219.49,219.39,0.7]
[1759327099451,0.82,219.49,219.39,0.7]
[1759327099756,13.59559401,219.48,219.39,0.7]
[1759327099957,18.15192741,219.48,219.4,4.55788514]
[1759327100253,13.59559401,219.46,219.4,4.55788514]
[1759327100426,13.69559401,219.49,219.4,5.25788514]
[1759327100634,14.41559401,219.49,219.41,0.7]
[1759327100827,0.28432314,219.48,219.41,0.7]
[1759327101953,1.00432314,219.48,219.41,0.7]
[1759327102756,13.59559401,219.47,219.41,5.2575218]
[1759327103847,18.15202623,219.47,219.39,4.55809289]
[1759327104050,14.30559401,219.47,219.42,20.8]
[1759327104364,13.59559401,219.48,219.42,21.52]
[1759327104551,14.30559401,219.48,219.42,21.52]
[1759327104759,14.30559401,219.48,219.42,20.8]
[1759327104962,0.99432314,219.47,219.42,20.8]
[1759327105155,13.59559401,219.45,219.39,25.35809289]
[1759327106245,18.1525032,219.45,219.39,20.8]
[1759327106445,0.71,219.44,219.39,20.8]
[1759327106641,0.71,219.43,219.38,0.72]
[1759327106966,0.66,219.42,219.36,5.27871626]
[1759327107477,13.59559401,219.44,219.39,20.8]
[1759327107770,0.28432314,219.47,219.4,0.71]
[1759327108067,13.59559401,219.48,219.41,4.5576774]
[1759327108365,0.76,219.49,219.41,4.5576774]
[1759327108366,0.1,219.49,219.44,20.8]
[1759327108570,0.1,219.49,219.45,0.71]
[1759327108869,0.1,219.49,219.44,20.8]
[1759327109059,0.1,219.49,219.44,21.51]
[1759327109254,0.1,219.49,219.45,0.71]
[1759327109760,0.1,219.49,219.44,20.8]
[1759327110059,0.1,219.49,219.47,4.5564314]
[1759327110664,0.1,219.49,219.48,21.51]
[1759327111165,0.1,219.49,219.48,0.71]
[1759327111373,0.1,219.49,219.45,26.06676865]
[1759327111547,0.1,219.49,219.46,0.71]
[1759327111747,0.1,219.49,219.44,20.8]
[1759327112064,0.1,219.49,219.45,20.8]
[1759327112461,0.1,219.49,219.45,21.51]
[1759327112951,0.1,219.49,219.45,26.06671878]
[1759327113144,0.76,219.49,219.45,25.35671878]
[1759327113346,0.76,219.49,219.45,20.8]
[1759327113858,0.1,219.49,219.45,26.06682897]
[1759327114221,0.76,219.49,219.45,25.35682897]
[1759327114468,0.1,219.49,219.45,26.06682897]
[1759327114843,0.1,219.49,219.45,25.35682897]
[1759327115245,0.1,219.49,219.45,26.06682897]
[1759327115549,0.1,219.49,219.45,20.8]
[1759327115747,0.1,219.49,219.45,25.35682651]
[1759327115945,0.1,219.49,219.45,26.06682651]
[1759327116469,0.1,219.49,219.46,0.71]
[1759327116643,0.1,219.49,219.47,21.51]
[1759327117260,0.1,219.49,219.47,5.2662259]
[1759327117441,0.1,219.49,219.48,0.71]
[1759327119195,0.1,219.49,219.48,5.2662238]
[1759327119682,0.1,219.49,219.48,0.71]
[1759327119886,0.1,219.49,219.46,4.55663742]
[1759327120048,0.1,219.49,219.46,5.26663742]
[1759327120248,0.1,219.49,219.47,0.71]
[1759327120478,0.1,219.49,219.46,5.26663742]
[1759327120863,0.1,219.49,219.47,0.71]
[1759327121262,0.1,219.49,219.48,5.2662238]
[1759327122667,0.1,219.49,219.45,0.71]
[1759327122870,0.1,219.49,219.46,21.51]
[1759327123267,0.1,219.49,219.47,5.2664314]
[1759327124262,0.1,219.49,219.47,4.5564314]
[1759327124988,0.1,219.49,219.46,25.35661019]
[1759327125171,0.1,219.49,219.46,26.06661019]
[1759327126465,0.1,219.49,219.46,20.8]
[1759327126662,13.59559401,219.47,219.42,34.39559401]
[1759327126864,0.66,219.46,219.42,34.39559401]
[1759327127069,13.59559401,219.47,219.42,20.8]
[1759327127271,0.1,219.49,219.43,0.71]
[1759327127471,0.1,219.49,219.45,20.8]
[1759327127870,0.1,219.49,219.46,0.71]
[1759327128474,0.1,219.49,219.47,0.71]
[1759327128659,0.76,219.49,219.43,25.35723472]
[1759327129171,0.1,219.49,219.44,0.71]
[1759327129377,0.1,219.49,219.45,0.71]
[1759327130384,0.1,219.49,219.46,25.35663902]
[1759327130871,0.1,219.49,219.47,0.71]
[1759327131785,0.1,219.49,219.46,20.8]
[1759327132174,14.35559401,219.49,219.46,20.8]
[1759327132576,13.69559401,219.49,219.46,20.8]
[1759327132782,13.59559401,219.47,219.43,20.8]
[1759327132981,14.25559401,219.47,219.43,20.8]
[1759327133185,0.66,219.46,219.43,20.8]
[1759327133576,13.59559401,219.47,219.43,20.8]
[1759327133893,0.1,219.49,219.44,0.72]
[1759327134793,13.69559401,219.49,219.44,5.27686535]
[1759327134996,0.69,219.48,219.44,25.35686535]
[1759327135290,13.69559401,219.49,219.44,26.07686535]
[1759327135699,14.38559401,219.49,219.44,4.55686535]
[1759327135870,18.94164456,219.49,219.44,4.55686535]
[1759327136070,13.59559401,219.47,219.43,20.8]
[1759327136270,13.59559401,219.47,219.43,26.07720225]
[1759327136474,13.59559401,219.47,219.43,25.35720225]
[1759327136716,13.59559401,219.47,219.43,26.07720225]
[1759327136877,13.59559401,219.47,219.43,25.35720225]
[1759327137382,13.59559401,219.47,219.44,0.72]
[1759327137996,13.59559401,219.47,219.44,20.8]
[1759327138178,13.59559401,219.47,219.43,25.35720225]
[1759327138383,13.59559401,219.47,219.43,26.07720225]
[1759327138586,13.59559401,219.47,219.43,25.35720225]
[1759327138895,13.59559401,219.47,219.44,20.8]
[1759327139395,5.34603504,219.49,219.43,26.07720225]
[1759327139571,0.79,219.49,219.43,25.35720225]
[1759327140275,0.79,219.49,219.43,36.75035724]
[1759327140471,0.1,219.49,219.44,0.72]
[1759327140778,0.1,219.49,219.45,0.72]
[1759327141702,0.1,219.49,219.43,26.07720225]
[1759327142206,4.65606024,219.49,219.43,26.07720225]
[1759327142515,0.1,219.49,219.43,26.07720225]
[1759327142882,4.6560327,219.49,219.43,21.52]
[1759327143174,4.6560327,219.49,219.38,0.72]
[1759327143175,13.59559401,219.47,219.38,0.72]
[1759327143383,13.59559401,219.45,219.38,0.72]
[1759327143599,13.59559401,219.45,219.39,20.8]
[1759327143804,0.69,219.44,219.39,20.8]
[1759327144287,0.69,219.44,219.39,21.52]
[1759327144474,0.28432314,219.46,219.4,4.55788514]
[1759327144669,13.59559401,219.45,219.4,4.55788514]
[1759327144881,0.1,219.49,219.41,0.72]
[1759327145091,0.1,219.49,219.43,20.8]
[1759327145293,13.69559401,219.49,219.43,21.52]
[1759327146604,18.25178121,219.49,219.43,21.52]
[1759327146796,18.25178121,219.49,219.43,26.07723542]
[1759327146989,13.69559401,219.49,219.43,26.07723542]
[1759327147688,0.1,219.49,219.44,0.72]
[1759327147890,0.1,219.49,219.45,0.72]
[1759327148283,13.59559401,219.47,219.44,20.8]
[1759327148487,4.65605506,219.49,219.39,0.72]
[1759327148488,13.59559401,219.45,219.39,0.72]
[1759327148695,13.59559401,219.43,219.39,20.8]
[1759327150099,13.59559401,219.46,219.4,0.72]
[1759327150401,13.59559401,219.46,219.39,20.8]
[1759327150795,13.59559401,219.44,219.39,20.8]
[1759327150995,0.69,219.43,219.39,20.8]
[1759327151902,0.69,219.43,219.39,25.35792381]
[1759327152607,0.28432314,219.46,219.39,4.55792381]
[1759327152790,13.59559401,219.44,219.39,4.55792381]
[1759327152986,13.59559401,219.44,219.4,0.72]
[1759327153198,13.59559401,219.44,219.4,20.8]
[1759327153397,0.69,219.46,219.4,21.52]
[1759327153706,13.59559401,219.47,219.41,0.72]
[1759327154010,5.2464893,219.47,219.41,5.27751443]
[1759327154509,13.59559401,219.46,219.41,5.27751443]
[1759327155096,13.59559401,219.46,219.42,0.72]
[1759327155608,13.59559401,219.47,219.42,0.72]
[1759327156005,13.59559401,219.47,219.41,11.39419351]
[1759327156205,0.1,219.49,219.43,0.72]
[1759327157300,0.1,219.49,219.44,4.55705432]
[1759327157590,13.59559401,219.48,219.44,4.55705432]
[1759327158898,14.28559401,219.48,219.44,4.55705432]
[1759327159608,14.28559401,219.48,219.43,4.55726199]
[1759327159808,0.1,219.49,219.46,20.8]
[1759327160315,0.1,219.49,219.38,5.90533383]
[1759327160316,14.28559401,219.48,219.41,20.8]
[1759327161397,14.28559401,219.48,219.43,20.8]
[1759327161599,13.59559401,219.46,219.43,20.8]
[1759327163189,0.28432314,219.48,219.42,20.8]
[1759327163393,0.28432314,219.45,219.4,20.8]
[1759327163610,13.59559401,219.43,219.4,20.8]
[1759327163987,14.27559401,219.43,219.37,0.68]
[1759327164242,13.59559401,219.41,219.35,0.68]